[Event "Championnat du monde jeunes U12F"]
[Date "2024.11.15"]
[White "Tong Thai Hoang An"]
[Black "Siddhi Rao"]
[WhiteElo "1869"]
[BlackElo "1677"]
[Round "1.8"]
[Result "0-1"]
[TimeControl "5400+30"]

1. d4 {[%clk 1:30:55]} 1... d5 {[%clk 1:30:53]} 2. c4 {[%clk 1:31:18]} 2... e6
{[%clk 1:31:19]} 3. Nc3 {[%clk 1:31:40]} 3... Nf6 {[%clk 1:31:42]} 4. Nf3 {[%clk
1:31:42]} 4... Bb4 {[%clk 1:32:03]} 5. a3 {[%clk 1:17:34]} 5... Bxc3+ {[%clk
1:31:38]} 6. bxc3 {[%clk 1:17:59]} 6... c5 {[%clk 1:26:30]} 7. cxd5 {[%clk
1:15:54]} 7... exd5 {[%clk 1:19:57]} 8. Qc2 {[%clk 1:10:11]} 8... Qa5 {[%clk
1:15:54]} 9. Nd2 {[%clk 1:07:59]} 9... Nbd7 {[%clk 1:00:57]} 10. e3 {[%clk
1:04:04]} 10... O-O {[%clk 1:00:37]} 11. Bd3 {[%clk 1:02:48]} 11... c4 {[%clk
0:57:13]} 12. Be2 {[%clk 1:01:35]} 12... Re8 {[%clk 0:51:32]} 13. O-O {[%clk
1:00:14]} 13... b5 {[%clk 0:48:54]} 14. Bf3 {[%clk 0:54:42]} 14... Bb7 {[%clk
0:47:42]} 15. Rb1 {[%clk 0:50:59]} 15... Rab8 {[%clk 0:44:06]} 16. Rb4 {[%clk
0:46:10]} 16... Bc6 {[%clk 0:42:22]} 17. a4 {[%clk 0:41:35]} 17... bxa4 {[%clk
0:32:01]} 18. Nxc4 {[%clk 0:41:46]} 18... Qc7 {[%clk 0:31:19]} 19. Nb2 {[%clk
0:34:36]} 19... Bb5 {[%clk 0:27:28]} 20. Be2 {[%clk 0:33:05]} 20... Bxe2 {[%clk
0:23:25]} 21. Qxe2 {[%clk 0:33:12]} 21... Qxc3 {[%clk 0:21:36]} 22. Rxa4 {[%clk
0:27:57]} 22... Rec8 {[%clk 0:13:43]} 23. h3 {[%clk 0:25:06]} 23... Rb7 {[%clk
0:12:26]} 24. Nd3 {[%clk 0:23:20]} 24... Qc2 {[%clk 0:03:56]} 25. Qxc2 {[%clk
0:22:06]} 25... Rxc2 {[%clk 0:04:20]} 26. Ra1 {[%clk 0:19:17]} 26... h6 {[%clk
0:02:59]} 27. Ba3 {[%clk 0:19:08]} 27... Rb5 {[%clk 0:00:37]} 28. Bb4 {[%clk
0:17:10]} 28... Rb7 {[%clk 0:00:34]} 29. Ra5 {[%clk 0:16:08]} 29... Nb8 30. Bc5
{[%clk 0:15:26]} 30... a6 {[%clk 0:00:34]} 31. Bd6 {[%clk 0:14:12]} 31... Rc6
{[%clk 0:00:44]} 32. Bxb8 {[%clk 0:12:39]} 32... Rxb8 {[%clk 0:01:12]} 33. Rfa1
{[%clk 0:12:44]} 33... Rb5 {[%clk 0:00:39]} 34. Rxa6 {[%clk 0:12:48]} 34... Rxa6
{[%clk 0:00:44]} 35. Rxa6 {[%clk 0:13:13]} 35... Ne4 {[%clk 0:01:10]} 36. f3
{[%clk 0:12:59]} 36... Rb1+ {[%clk 0:01:34]} 37. Kh2 {[%clk 0:13:14]} 37... Nd2
{[%clk 0:01:29]} 38. Kg3 {[%clk 0:10:08]} 38... Rb3 {[%clk 0:01:01]} 39. Ne5
{[%clk 0:08:51]} 39... Nf1+ {[%clk 0:00:38]} 40. Kf2 {[%clk 0:09:08]} 40... Nxe3
{[%clk 0:01:01]} 41. Ra8+ {[%clk 0:09:19]} 41... Kh7 {[%clk 0:01:26]} 42. Nxf7
{[%clk 0:09:18]} 42... Nf5 {[%clk 0:01:23]} 43. Rh8+ {[%clk 0:07:03]} 43... Kg6
{[%clk 0:01:43]} 44. Ne5+ {[%clk 0:07:05]} 44... Kg5 {[%clk 0:01:58]} 45. Rd8
{[%clk 0:06:26]} 45... Rb2+ {[%clk 0:01:37]} 46. Ke1 {[%clk 0:03:48]} 46... Nxd4
{[%clk 0:01:21]} 47. f4+ {[%clk 0:02:49]} 47... Kf5 {[%clk 0:01:00]} 48. Nd3
{[%clk 0:02:43]} 48... Rxg2 {[%clk 0:00:51]} 49. Nf2 {[%clk 0:01:58]} 49... Kxf4
{[%clk 0:01:03]} 50. Rxd5 {[%clk 0:02:09]} 50... Nc2+ {[%clk 0:01:16]} 51. Ke2
{[%clk 0:02:05]} 51... Rg3 {[%clk 0:00:41]} 52. Rd7 {[%clk 0:01:53]} 52... g5
{[%clk 0:00:35]} 53. Rh7 {[%clk 0:01:53]} 53... Nd4+ {[%clk 0:00:59]} 54. Kf1
{[%clk 0:01:58]} 54... Nf5 {[%clk 0:01:15]} 55. Rf7 {[%clk 0:02:03]} 55... Rf3
{[%clk 0:01:26]} 56. Ke2 {[%clk 0:01:50]} 56... Kg3 {[%clk 0:01:13]} 57. Ne4+
{[%clk 0:01:32]} 57... Kg2 {[%clk 0:01:36]} 58. Kd2 {[%clk 0:01:26]} 58... Ng3
{[%clk 0:01:26]} 59. Nxg5 {[%clk 0:01:05]} 59... hxg5 {[%clk 0:01:42]} 60. Rh7
{[%clk 0:01:21]} 60... Ne4+ {[%clk 0:01:44]} 61. Ke2 {[%clk 0:01:45]} 61... Rxh3
{[%clk 0:01:59]} 62. Rg7 {[%clk 0:01:54]} 62... Rg3 {[%clk 0:02:06]} 63. Rg8
{[%clk 0:02:05]} 63... g4 {[%clk 0:02:31]} 64. Rg7 {[%clk 0:02:26]} 64... Nf2
{[%clk 0:02:50]} 65. Rg8 {[%clk 0:02:19]} 65... Rf3 {[%clk 0:02:56]} 66. Rg7
{[%clk 0:02:35]} 66... g3 {[%clk 0:03:18]} 67. Rg8 {[%clk 0:02:52]} 67... Nh1
{[%clk 0:03:25]} 68. Rg7 {[%clk 0:02:51]} 68... Rf2+ {[%clk 0:03:46]} 69. Ke3
{[%clk 0:03:18]} 69... Kg1 {[%clk 0:03:44]} 70. Rg8 {[%clk 0:03:29]} 70... g2
{[%clk 0:04:07]} 71. Rg7 {[%clk 0:03:48]} 71... Kf1 {[%clk 0:04:06]} 0-1

[Variant "Standard"]
[Site "Europe Echecs"]

[Event "Championnat du monde jeunes U12F"]
[Date "2024.11.15"]
[White "Radenkovic, Lena"]
[Black "Buyankhishig, Batpelden"]
[WhiteElo "1675"]
[BlackElo "1867"]
[Round "1.9"]
[Result "0-1"]
[TimeControl "5400+30"]

1. Nf3 {[%clk 1:30:48]} 1... d5 {[%clk 1:30:16]} 2. g3 {[%clk 1:29:41]} 2... Nf6
{[%clk 1:29:48]} 3. Bg2 {[%clk 1:28:49]} 3... Bf5 {[%clk 1:28:57]} 4. O-O {[%clk
1:27:46]} 4... e6 {[%clk 1:28:39]} 5. d3 {[%clk 1:25:49]} 5... Bd6 {[%clk
1:26:43]} 6. Nbd2 {[%clk 1:24:10]} 6... e5 {[%clk 1:22:52]} 7. e4 {[%clk
1:14:44]} 7... dxe4 {[%clk 1:16:37]} 8. dxe4 {[%clk 1:12:02]} 8... Be6 {[%clk
1:14:20]} 9. Re1 {[%clk 1:11:19]} 9... Nbd7 {[%clk 1:10:00]} 10. b3 {[%clk
1:08:25]} 10... O-O {[%clk 1:07:26]} 11. Bb2 {[%clk 1:07:04]} 11... a5 {[%clk
1:05:15]} 12. a4 {[%clk 1:02:09]} 12... Re8 {[%clk 0:52:43]} 13. h3 {[%clk
1:00:16]} 13... Ra6 {[%clk 0:40:39]} 14. Ra2 {[%clk 0:55:41]} 14... Bb4 {[%clk
0:39:05]} 15. Re2 {[%clk 0:46:49]} 15... Rd6 {[%clk 0:36:24]} 16. Qc1 {[%clk
0:38:12]} 16... Nh5 {[%clk 0:34:54]} 17. Ra1 {[%clk 0:34:17]} 17... Qf6 {[%clk
0:32:12]} 18. Nf1 {[%clk 0:30:37]} 18... Bxh3 {[%clk 0:26:05]} 19. N1h2 {[%clk
0:27:15]} 19... Bxg2 {[%clk 0:24:58]} 20. Kxg2 {[%clk 0:27:18]} 20... Qg6 {[%clk
0:24:22]} 21. Qg5 {[%clk 0:26:47]} 21... Qxg5 {[%clk 0:22:06]} 22. Nxg5 {[%clk
0:27:02]} 22... Rg6 {[%clk 0:22:14]} 23. Ngf3 {[%clk 0:26:44]} 23... Nf4+ {[%clk
0:22:16]} 24. Kf1 {[%clk 0:27:03]} 24... Nxe2 {[%clk 0:22:37]} 25. Kxe2 {[%clk
0:27:18]} 25... Rc6 {[%clk 0:22:31]} 26. c4 {[%clk 0:27:08]} 26... Nc5 {[%clk
0:21:40]} 27. Nxe5 {[%clk 0:25:50]} 27... Rce6 {[%clk 0:21:55]} 28. f3 {[%clk
0:25:21]} 28... Rxe5 {[%clk 0:22:01]} 29. Bxe5 {[%clk 0:25:37]} 29... Rxe5
{[%clk 0:22:24]} 30. Rd1 {[%clk 0:25:50]} 30... f5 {[%clk 0:22:32]} 31. Kf1
{[%clk 0:24:58]} 31... fxe4 {[%clk 0:22:52]} 32. fxe4 {[%clk 0:25:20]} 32...
Rxe4 {[%clk 0:23:15]} 33. Kf2 {[%clk 0:24:50]} 33... Nxb3 {[%clk 0:23:31]} 34.
Kf3 {[%clk 0:24:47]} 34... Rxc4 {[%clk 0:23:42]} 35. Rf1 {[%clk 0:24:30]} 35...
Nd2+ 0-1

[Variant "Standard"]
[Site "Europe Echecs"]

[Event "Championnat du monde jeunes U12F"]
[Date "2024.11.15"]
[White "Ahmed Mohamed, Zakaa"]
[Black "Smirnova, Viktoria A"]
[WhiteElo "1866"]
[BlackElo "1658"]
[Round "1.10"]
[Result "1-0"]
[TimeControl "5400+30"]

1. e4 {[%clk 1:30:57]} 1... e6 {[%clk 1:30:57]} 2. d4 {[%clk 1:31:15]} 2... d5
{[%clk 1:31:24]} 3. Nd2 {[%clk 1:31:31]} 3... c5 {[%clk 1:31:49]} 4. c3 {[%clk
1:31:30]} 4... Nc6 {[%clk 1:32:04]} 5. Ngf3 {[%clk 1:31:44]} 5... cxd4 {[%clk
1:32:13]} 6. cxd4 {[%clk 1:32:00]} 6... Bb4 {[%clk 1:32:03]} 7. e5 {[%clk
1:28:01]} 7... Qb6 {[%clk 1:30:41]} 8. a3 {[%clk 1:27:01]} 8... Bxd2+ {[%clk
1:30:18]} 9. Qxd2 {[%clk 1:27:19]} 9... Nge7 {[%clk 1:27:29]} 10. b4 {[%clk
1:25:36]} 10... Bd7 {[%clk 1:26:57]} 11. Be2 {[%clk 1:25:05]} 11... Rc8 {[%clk
1:24:28]} 12. O-O {[%clk 1:24:09]} 12... Nf5 {[%clk 1:23:43]} 13. Bb2 {[%clk
1:22:50]} 13... O-O {[%clk 1:23:39]} 14. Bc3 {[%clk 1:19:46]} 14... a6 {[%clk
1:21:31]} 15. a4 {[%clk 1:14:48]} 15... Na7 {[%clk 1:18:56]} 16. b5 {[%clk
0:50:31]} 16... Qc7 {[%clk 0:58:40]} 17. Rfc1 {[%clk 0:45:44]} 17... Qb8 {[%clk
0:57:57]} 18. bxa6 {[%clk 0:46:04]} 18... bxa6 {[%clk 0:57:56]} 19. Bxa6 {[%clk
0:45:44]} 19... Rc6 {[%clk 0:57:26]} 20. Bd3 {[%clk 0:45:56]} 20... Rfc8 {[%clk
0:57:14]} 21. Rcb1 {[%clk 0:38:32]} 21... Rb6 {[%clk 0:53:58]} 22. a5 {[%clk
0:36:23]} 22... Rxb1+ {[%clk 0:53:07]} 23. Rxb1 {[%clk 0:36:41]} 23... Qc7
{[%clk 0:51:46]} 24. Bb4 {[%clk 0:34:31]} 24... Bb5 {[%clk 0:47:15]} 25. Bxb5
{[%clk 0:32:53]} 25... Nxb5 {[%clk 0:45:55]} 26. Bc5 {[%clk 0:32:45]} 26...
Nbxd4 {[%clk 0:44:56]} 27. Bxd4 {[%clk 0:32:45]} 27... Nxd4 {[%clk 0:45:11]} 28.
Nxd4 {[%clk 0:33:09]} 28... Qxe5 {[%clk 0:45:09]} 29. a6 {[%clk 0:32:44]} 29...
Ra8 {[%clk 0:44:41]} 30. Qb4 {[%clk 0:32:21]} 30... g6 {[%clk 0:43:38]} 31. Nc6
{[%clk 0:32:41]} 31... Qe2 {[%clk 0:43:09]} 32. a7 {[%clk 0:32:58]} 32... Kg7
{[%clk 0:42:37]} 33. Qd4+ {[%clk 0:32:00]} 33... Kh6 {[%clk 0:42:26]} 34. Qe3+
{[%clk 0:32:10]} 1-0

[Variant "Standard"]
[Site "Europe Echecs"]

[Event "Championnat du monde jeunes U12F"]
[Date "2024.11.15"]
[White "Wang, Tianmu"]
[Black "Pavithra R V"]
[WhiteElo "1640"]
[BlackElo "1854"]
[Round "1.11"]
[Result "1/2-1/2"]
[TimeControl "5400+30"]

1. e4 {[%clk 1:30:59]} 1... c5 {[%clk 1:30:53]} 2. Nf3 {[%clk 1:31:22]} 2... Nc6
{[%clk 1:31:12]} 3. d4 {[%clk 1:31:34]} 3... cxd4 {[%clk 1:31:31]} 4. Nxd4
{[%clk 1:31:48]} 4... Nf6 {[%clk 1:31:51]} 5. Nc3 {[%clk 1:32:01]} 5... e5
{[%clk 1:32:06]} 6. Nxc6 {[%clk 1:31:34]} 6... bxc6 {[%clk 1:32:27]} 7. Bc4
{[%clk 1:28:50]} 7... Be7 {[%clk 1:31:02]} 8. O-O {[%clk 1:27:43]} 8... O-O
{[%clk 1:30:07]} 9. Qe2 {[%clk 1:23:37]} 9... a5 {[%clk 1:28:10]} 10. Rd1 {[%clk
1:21:06]} 10... Qc7 {[%clk 1:27:05]} 11. Be3 {[%clk 1:19:07]} 11... Rb8 {[%clk
1:23:38]} 12. Bb3 {[%clk 1:14:16]} 12... d6 {[%clk 1:05:03]} 13. h3 {[%clk
1:11:05]} 13... Rd8 {[%clk 1:01:57]} 14. f4 {[%clk 1:02:31]} 14... h6 {[%clk
0:39:49]} 15. g4 {[%clk 0:49:37]} 15... exf4 {[%clk 0:34:25]} 16. Bxf4 {[%clk
0:49:25]} 16... g5 {[%clk 0:33:26]} 17. Bg3 {[%clk 0:45:23]} 17... Qa7+ {[%clk
0:22:58]} 18. Kg2 {[%clk 0:43:56]} 18... Ba6 {[%clk 0:21:31]} 19. Qf3 {[%clk
0:42:09]} 19... Bb7 {[%clk 0:14:40]} 20. Bxd6 {[%clk 0:36:57]} 20... Ba8 {[%clk
0:08:25]} 21. Bxb8 {[%clk 0:35:59]} 21... Rxb8 {[%clk 0:08:42]} 22. Rd3 {[%clk
0:30:08]} 22... a4 {[%clk 0:06:15]} 23. Nxa4 {[%clk 0:26:23]} 23... c5 {[%clk
0:06:02]} 24. Nc3 {[%clk 0:25:18]} 24... Qc7 {[%clk 0:05:42]} 25. Bc4 {[%clk
0:21:32]} 25... Rxb2 {[%clk 0:05:45]} 26. Rc1 {[%clk 0:21:19]} 26... Qe5 {[%clk
0:04:56]} 27. Bd5 {[%clk 0:14:57]} 27... Nxd5 {[%clk 0:04:33]} 28. Nxd5 {[%clk
0:12:58]} 28... Bd6 {[%clk 0:04:48]} 29. Kf1 {[%clk 0:12:06]} 29... c4 {[%clk
0:04:00]} 30. Rd2 {[%clk 0:10:51]} 30... Rxa2 {[%clk 0:03:28]} 31. Rf2 {[%clk
0:10:24]} 31... Ra7 {[%clk 0:03:31]} 32. Rb1 {[%clk 0:08:57]} 32... Bc5 {[%clk
0:03:02]} 33. Rd2 {[%clk 0:08:47]} 33... Ra1 {[%clk 0:02:38]} 34. Rxa1 {[%clk
0:08:07]} 34... Qxa1+ {[%clk 0:03:05]} 35. Rd1 {[%clk 0:08:28]} 35... Qb2 {[%clk
0:02:18]} 36. Nf6+ {[%clk 0:07:57]} 36... Kg7 {[%clk 0:02:31]} 37. Nh5+ {[%clk
0:08:00]} 37... Kg8 {[%clk 0:02:55]} 38. Rd8+ {[%clk 0:07:47]} 38... Bf8 {[%clk
0:03:14]} 39. Rxa8 {[%clk 0:07:25]} 39... Qc1+ {[%clk 0:03:32]} 40. Kg2 {[%clk
0:06:55]} 40... Qxc2+ {[%clk 0:03:53]} 41. Kg3 {[%clk 0:06:35]} 41... Qb2 {[%clk
0:03:49]} 42. Rc8 {[%clk 0:03:54]} 42... Qe5+ {[%clk 0:03:31]} 43. Kg2 {[%clk
0:04:07]} 43... Qe6 {[%clk 0:03:33]} 44. Qf5 {[%clk 0:03:59]} 44... Qb6 {[%clk
0:03:40]} 45. Nf6+ {[%clk 0:02:44]} 45... Kg7 {[%clk 0:04:01]} 46. Nh5+ {[%clk
0:02:04]} 46... Kg8 {[%clk 0:04:29]} 47. Qe5 {[%clk 0:02:16]} 47... Qg6 {[%clk
0:04:40]} 48. Qe8 {[%clk 0:02:13]} 48... Qd6 {[%clk 0:04:01]} 49. Nf6+ {[%clk
0:02:05]} 49... Kg7 {[%clk 0:04:18]} 50. Nd5 {[%clk 0:02:15]} 50... Qa3 {[%clk
0:04:00]} 51. Qe5+ {[%clk 0:02:17]} 51... Kh7 {[%clk 0:04:22]} 52. Nf6+ {[%clk
0:01:58]} 52... Kg6 {[%clk 0:04:41]} 53. Qf5+ {[%clk 0:01:30]} 53... Kg7 {[%clk
0:05:07]} 54. Nh5+ {[%clk 0:01:08]} 54... Kg8 {[%clk 0:05:30]} 55. Rc7 {[%clk
0:01:16]} 55... Be7 {[%clk 0:05:03]} 56. e5 {[%clk 0:01:04]} 56... Qb2+ {[%clk
0:05:06]} 57. Kg3 {[%clk 0:01:04]} 57... Qc3+ {[%clk 0:05:26]} 58. Kg2 {[%clk
0:01:12]} 58... Qb2+ {[%clk 0:05:36]} 59. Qf2 {[%clk 0:01:01]} 59... Qxe5 {[%clk
0:05:56]} 60. Rc8+ {[%clk 0:01:07]} 60... Bf8 {[%clk 0:06:06]} 61. Qf5 {[%clk
0:00:52]} 61... Qe2+ {[%clk 0:06:21]} 62. Kg1 {[%clk 0:01:07]} 62... Qd1+ {[%clk
0:06:31]} 63. Kg2 {[%clk 0:01:25]} 63... Qe2+ {[%clk 0:06:55]} 64. Kg3 {[%clk
0:01:42]} 64... Qe3+ {[%clk 0:07:10]} 65. Qf3 {[%clk 0:01:58]} 65... Qg1+ {[%clk
0:07:31]} 66. Qg2 {[%clk 0:02:21]} 66... Qe3+ {[%clk 0:07:30]} 67. Kh2 {[%clk
0:02:41]} 67... Qe6 {[%clk 0:07:43]} 68. Ra8 {[%clk 0:02:11]} 68... Qe5+ {[%clk
0:07:57]} 69. Ng3 {[%clk 0:01:52]} 69... c3 {[%clk 0:08:19]} 70. Qc2 {[%clk
0:01:52]} 70... Kg7 {[%clk 0:08:24]} 71. Qe4 {[%clk 0:01:51]} 71... Qc7 {[%clk
0:08:17]} 72. Qd4+ {[%clk 0:02:01]} 72... Kg8 {[%clk 0:07:57]} 73. Qd8 {[%clk
0:01:05]} 73... Qc5 {[%clk 0:07:57]} 74. Ne4 {[%clk 0:00:57]} 74... Qb4 {[%clk
0:07:22]} 75. Qd6 {[%clk 0:00:42]} 75... Qxd6+ {[%clk 0:06:45]} 76. Nxd6 {[%clk
0:01:06]} 76... c2 {[%clk 0:07:10]} 77. Rc8 c1=Q {[%clk 0:07:33]} 78. Rxc1
{[%clk 0:01:16]} 78... Bxd6+ {[%clk 0:07:57]} 79. Kg2 {[%clk 0:01:25]} 79... Kg7
{[%clk 0:08:23]} 80. Rf1 {[%clk 0:01:45]} 80... Kg6 {[%clk 0:08:39]} 81. Rf3
{[%clk 0:01:44]} 81... f6 {[%clk 0:08:55]} 82. Kf2 {[%clk 0:02:08]} 82... Be5
{[%clk 0:09:17]} 83. Ke3 {[%clk 0:02:31]} 83... h5 {[%clk 0:09:37]} 84. Ke4
{[%clk 0:02:45]} 84... h4 {[%clk 0:09:53]} 1/2-1/2

[Variant "Standard"]
[Site "Europe Echecs"]

[Event "Championnat du monde jeunes U12F"]
[Date "2024.11.15"]
[White "Tran Le Vy"]
[Black "Bogomolnikova, Zlata"]
[WhiteElo "1854"]
[BlackElo "1628"]
[Round "1.12"]
[Result "1-0"]
[TimeControl "5400+30"]

1. e4 {[%clk 1:30:58]} 1... c5 {[%clk 1:30:51]} 2. Nf3 {[%clk 1:31:22]} 2... d6
{[%clk 1:31:10]} 3. c3 {[%clk 1:31:45]} 3... Nf6 {[%clk 1:31:29]} 4. Bd3 {[%clk
1:32:08]} 4... Nc6 {[%clk 1:29:46]} 5. Bc2 {[%clk 1:32:25]} 5... Bg4 {[%clk
1:28:55]} 6. d3 {[%clk 1:32:44]} 6... e6 {[%clk 1:27:49]} 7. Nbd2 {[%clk
1:32:47]} 7... Be7 {[%clk 1:27:19]} 8. h3 {[%clk 1:33:01]} 8... Bh5 {[%clk
1:26:20]} 9. Nf1 {[%clk 1:33:19]} 9... a6 {[%clk 1:25:03]} 10. Ng3 {[%clk
1:31:30]} 10... Bg6 {[%clk 1:23:49]} 11. O-O {[%clk 1:30:03]} 11... O-O {[%clk
1:23:32]} 12. Re1 {[%clk 1:27:56]} 12... b5 {[%clk 1:21:00]} 13. d4 {[%clk
1:25:51]} 13... c4 {[%clk 1:16:30]} 14. d5 {[%clk 1:18:39]} 14... exd5 {[%clk
1:07:07]} 15. exd5 {[%clk 1:18:48]} 15... Bxc2 {[%clk 1:04:36]} 16. Qxc2 {[%clk
1:19:06]} 16... Ne5 {[%clk 1:02:44]} 17. Nxe5 {[%clk 1:10:47]} 17... dxe5 {[%clk
1:02:59]} 18. Nf5 {[%clk 1:06:39]} 18... Nd7 {[%clk 0:54:49]} 19. d6 {[%clk
1:04:22]} 19... Bf6 {[%clk 0:53:16]} 20. Be3 {[%clk 1:03:11]} 20... Re8 {[%clk
0:47:19]} 21. Qe4 {[%clk 1:00:23]} 21... Bg5 {[%clk 0:41:25]} 22. Qg4 {[%clk
0:58:52]} 22... Bf6 {[%clk 0:37:53]} 23. a4 {[%clk 0:50:39]} 23... e4 {[%clk
0:33:23]} 24. Bd4 {[%clk 0:48:50]} 24... Bxd4 {[%clk 0:31:58]} 25. cxd4 {[%clk
0:49:07]} 25... g6 {[%clk 0:30:50]} 26. Ne7+ {[%clk 0:49:04]} 26... Rxe7 {[%clk
0:29:15]} 27. dxe7 {[%clk 0:49:17]} 27... Qxe7 {[%clk 0:29:40]} 28. axb5 {[%clk
0:48:30]} 28... f5 {[%clk 0:29:00]} 29. Qf4 {[%clk 0:48:22]} 29... a5 {[%clk
0:28:27]} 30. Qc7 {[%clk 0:48:37]} 30... Rf8 {[%clk 0:21:11]} 31. Qxc4+ {[%clk
0:48:38]} 31... Kg7 {[%clk 0:21:00]} 32. Rxa5 {[%clk 0:48:54]} 32... Qg5 {[%clk
0:20:40]} 33. Ra7 {[%clk 0:48:56]} 33... Rf7 {[%clk 0:20:29]} 34. d5 {[%clk
0:48:06]} 34... Kh6 {[%clk 0:18:34]} 35. Qc3 {[%clk 0:47:54]} 35... f4 {[%clk
0:11:01]} 36. Rxe4 {[%clk 0:47:38]} 36... Qxd5 {[%clk 0:10:41]} 37. Rd4 {[%clk
0:47:10]} 37... Qf5 {[%clk 0:10:58]} 38. Qd2 {[%clk 0:47:24]} 38... Qb1+ {[%clk
0:03:13]} 39. Qd1 {[%clk 0:47:41]} 39... Qxb2 {[%clk 0:01:56]} 40. Rdxd7 {[%clk
0:47:54]} 40... Rf8 {[%clk 0:00:53]} 41. Rxh7+ {[%clk 0:48:13]} 41... Kg5 {[%clk
0:01:11]} 42. Qg4+ {[%clk 0:48:33]} 42... Kf6 {[%clk 0:01:36]} 43. Qxf4+ {[%clk
0:48:53]} 43... Ke6 {[%clk 0:01:43]} 44. Qe4+ {[%clk 0:49:03]} 44... Kd6 {[%clk
0:01:23]} 45. Qc6+ {[%clk 0:49:12]} 45... Ke5 {[%clk 0:01:28]} 46. Rhe7+ {[%clk
0:49:30]} 46... Kf5 {[%clk 0:01:08]} 47. Qe4+ {[%clk 0:49:46]} 47... Kg5 {[%clk
0:01:21]} 48. h4+ {[%clk 0:50:11]} 48... Kh5 {[%clk 0:01:35]} 49. Rh7# {[%clk
0:50:33]} 1-0

[Variant "Standard"]
[Site "Europe Echecs"]

[Event "Championnat du monde jeunes U12F"]
[Date "2024.11.15"]
[White "Muradova, Nebahat"]
[Black "Xue, Tianhao"]
[WhiteElo "1626"]
[BlackElo "1835"]
[Round "1.13"]
[Result "0-1"]
[TimeControl "5400+30"]

1. d4 {[%clk 1:30:57]} 1... Nf6 {[%clk 1:30:56]} 2. c4 {[%clk 1:31:22]} 2... g6
{[%clk 1:31:23]} 3. Nc3 {[%clk 1:31:46]} 3... d5 {[%clk 1:31:47]} 4. Nf3 {[%clk
1:31:34]} 4... Bg7 {[%clk 1:32:10]} 5. Bf4 {[%clk 1:31:45]} 5... O-O {[%clk
1:32:24]} 6. e3 {[%clk 1:32:00]} 6... c5 {[%clk 1:32:47]} 7. cxd5 {[%clk
1:28:10]} 7... Nxd5 {[%clk 1:30:26]} 8. Be5 {[%clk 1:28:13]} 8... Nc6 {[%clk
1:25:36]} 9. Bxg7 {[%clk 1:27:12]} 9... Kxg7 {[%clk 1:25:36]} 10. Bc4 {[%clk
1:26:22]} 10... Nxc3 {[%clk 1:23:41]} 11. bxc3 {[%clk 1:26:40]} 11... Qa5 {[%clk
1:22:38]} 12. Qd2 {[%clk 1:24:36]} 12... Bg4 {[%clk 1:19:19]} 13. Bd5 {[%clk
1:21:53]} 13... Bxf3 {[%clk 1:14:42]} 14. Bxf3 {[%clk 1:21:58]} 14... Rac8
{[%clk 1:15:05]} 15. Rd1 {[%clk 1:15:53]} 15... cxd4 {[%clk 1:06:15]} 16. Bxc6
{[%clk 1:07:12]} 16... dxe3 {[%clk 1:04:51]} 17. Qxe3 {[%clk 1:00:00]} 17...
Rxc6 {[%clk 1:04:25]} 18. O-O {[%clk 1:00:11]} 18... e6 {[%clk 1:01:30]} 19. Rd7
{[%clk 0:50:30]} 19... Qb6 {[%clk 0:48:55]} 20. Qe5+ {[%clk 0:45:32]} 20... Kg8
{[%clk 0:48:49]} 21. Rfd1 {[%clk 0:45:03]} 21... Rc5 {[%clk 0:43:11]} 22. Qf6
{[%clk 0:37:53]} 22... Rf5 {[%clk 0:37:13]} 23. Qh4 {[%clk 0:38:00]} 23... Rb5
{[%clk 0:25:27]} 24. h3 {[%clk 0:32:53]} 24... Rb1 {[%clk 0:24:42]} 25. Rxb1
{[%clk 0:32:52]} 25... Qxb1+ {[%clk 0:25:10]} 26. Kh2 {[%clk 0:33:04]} 26... Qb6
{[%clk 0:21:22]} 27. Qg3 {[%clk 0:29:27]} 27... Qc6 {[%clk 0:20:20]} 28. Rc7
{[%clk 0:29:05]} 28... Qa6 {[%clk 0:19:40]} 29. c4 {[%clk 0:25:07]} 29... b6
{[%clk 0:18:19]} 30. a3 {[%clk 0:21:52]} 30... Qa5 {[%clk 0:15:30]} 31. Rb7
{[%clk 0:14:26]} 31... Qc5 {[%clk 0:06:29]} 32. Rc7 {[%clk 0:13:16]} 32... Qd4
{[%clk 0:05:50]} 33. Rxa7 {[%clk 0:13:13]} 33... Qxc4 {[%clk 0:06:19]} 34. Rb7
{[%clk 0:13:04]} 34... Qc5 {[%clk 0:05:25]} 35. Rc7 {[%clk 0:12:31]} 35... Qd5
{[%clk 0:05:21]} 36. Ra7 {[%clk 0:09:03]} 36... h5 {[%clk 0:04:51]} 37. Re7
{[%clk 0:08:13]} 37... b5 {[%clk 0:04:52]} 38. Ra7 {[%clk 0:04:08]} 38... Qd4
{[%clk 0:04:49]} 39. Rb7 {[%clk 0:04:05]} 39... h4 {[%clk 0:03:47]} 40. Qf3
{[%clk 0:04:25]} 40... Qe5+ {[%clk 0:03:40]} 41. Kg1 {[%clk 0:04:37]} 41... Kg7
{[%clk 0:03:02]} 42. Rd7 {[%clk 0:04:29]} 42... Kg8 {[%clk 0:02:19]} 43. Rb7
{[%clk 0:04:43]} 43... Qa1+ {[%clk 0:01:21]} 44. Kh2 {[%clk 0:05:11]} 44... Qe5+
{[%clk 0:01:50]} 45. Kg1 {[%clk 0:05:31]} 45... Qg5 {[%clk 0:01:59]} 46. Rc7
{[%clk 0:04:31]} 46... e5 {[%clk 0:01:58]} 47. Rb7 {[%clk 0:03:58]} 47... Qc1+
{[%clk 0:02:15]} 48. Kh2 Qc4 {[%clk 0:02:35]} 49. Qg4 {[%clk 0:02:45]} 49... Qd5
{[%clk 0:01:59]} 50. Rb6 {[%clk 0:02:50]} 50... Qd3 {[%clk 0:01:17]} 51. Qxh4
{[%clk 0:02:45]} 51... Rc8 {[%clk 0:00:55]} 52. Qg5 {[%clk 0:01:31]} 52... Re8
{[%clk 0:01:00]} 53. Qe3 {[%clk 0:01:19]} 53... Qc4 {[%clk 0:01:09]} 54. Qg3
{[%clk 0:00:43]} 54... Kg7 {[%clk 0:01:16]} 55. h4 {[%clk 0:00:40]} 55... Qc5
{[%clk 0:00:55]} 56. Ra6 {[%clk 0:00:59]} 56... Qe7 {[%clk 0:00:47]} 57. Qg4
{[%clk 0:00:55]} 57... Rh8 {[%clk 0:00:53]} 58. g3 {[%clk 0:01:19]} 58... Rh5
{[%clk 0:01:00]} 59. Qe4 {[%clk 0:01:08]} 59... Rf5 {[%clk 0:01:25]} 60. Qe3
{[%clk 0:01:17]} 60... Qc7 {[%clk 0:01:30]} 61. Rb6 {[%clk 0:01:04]} 61... Qc2
{[%clk 0:01:28]} 62. Kg2 {[%clk 0:01:31]} 62... Qc4 {[%clk 0:01:42]} 63. Rb8
{[%clk 0:00:54]} 63... Qd5+ {[%clk 0:02:06]} 64. Kg1 {[%clk 0:01:16]} 64... Rf3
{[%clk 0:02:14]} 65. Qc1 {[%clk 0:00:40]} 65... Rd3 {[%clk 0:02:35]} 66. Kh2
{[%clk 0:00:33]} 66... Rd1 {[%clk 0:02:55]} 67. Qxd1 {[%clk 0:00:54]} 67... Qxd1
{[%clk 0:03:21]} 68. Rxb5 {[%clk 0:01:17]} 68... Qe2 {[%clk 0:03:48]} 0-1

[Variant "Standard"]
[Site "Europe Echecs"]